bitfinex/quotes_ETHUSD_20240819
["timestamp","ask_amount","ask_price","bid_price","bid_amount"]
[1724032437546,3.79565,2634.6,2634.2,0.83660638]
[1724032437727,0.05898102,2634.5,2634.1,5.41732]
[1724032437921,0.05898102,2634.5,2634.2,0.83660701]
[1724032438126,0.05898102,2634.5,2634.1,5.41732]
[1724032438328,0.05898102,2634.5,2634.2,0.83660519]
[1724032438564,0.05898102,2634.5,2634.1,5.41732]
[1724032438765,0.05898102,2634.5,2634.2,0.83660676]
[1724032439057,0.05898102,2634.5,2634.1,5.41732]
[1724032439460,3.85477102,2634.5,2634.2,0.83660497]
[1724032439627,3.85477102,2634.5,2634.1,1.621]
[1724032439956,3.85477102,2634.5,2634.2,0.83661648]
[1724032440150,0.05898102,2634.5,2634.1,1.621]
[1724032440324,7.59114,2634.7,2634.2,0.83660868]
[1724032440524,7.59114,2634.7,2634.1,5.41736]
[1724032440525,0.05906132,2634.6,2634.1,5.41736]
[1724032440725,0.05906132,2634.6,2634.2,0.83661404]
[1724032440925,0.05906132,2634.6,2634.1,5.41736]
[1724032441186,3.85471132,2634.6,2634.2,0.83661402]
[1724032441459,3.85471132,2634.6,2634.1,5.41736]
[1724032441661,3.85471132,2634.6,2634.2,0.83663393]
[1724032441892,5.02126117,2634.6,2634.1,3.79636]
[1724032442061,5.02126117,2634.6,2634.2,1.621]
[1724032442670,6.22442,2634.5,2634.0,1.621]
[1724032442853,7.26507483,2634.5,2634.1,0.83665023]
[1724032443066,3.85481884,2634.4,2634.0,1.621]
[1724032443272,3.79624,2634.2,2633.7,3.79688]
[1724032443564,0.05861855,2634.1,2633.8,2.4577146]
[1724032443743,0.05861855,2634.1,2633.9,0.8367146]
[1724032443945,0.05861855,2634.1,2633.8,1.621]
[1724032444144,0.05861855,2634.1,2633.9,0.83671922]
[1724032444450,0.05861855,2634.1,2633.8,1.621]
[1724032444657,0.05861855,2634.1,2634.0,1.621]
[1724032444857,0.05861855,2634.1,2634.0,2.45770323]
[1724032445075,6.22468,2634.3,2634.0,2.45770323]
[1724032445233,6.22468,2634.3,2634.0,1.621]
[1724032445234,0.05872904,2634.1,2634.0,1.621]
[1724032445426,6.2659,2634.5,2634.0,2.45765291]
[1724032445757,6.2659,2634.5,2634.2,1.621]
[1724032445938,5.38537716,2634.7,2634.2,1.621]
[1724032445939,0.0589878,2634.4,2634.2,1.621]
[1724032446277,6.26569,2634.7,2634.3,1.621]
[1724032446485,3.7958,2634.5,2634.1,1.621]
[1724032447135,2.4137,2634.4,2634.1,1.621]
[1724032447879,6.20965,2634.4,2634.1,1.621]
[1724032448679,2.4137,2634.4,2634.1,1.621]
[1724032449544,3.7958,2634.5,2634.1,1.621]
[1724032449545,3.79566,2634.6,2634.1,1.621]
[1724032449745,6.06006,2634.7,2634.3,1.621]
[1724032449956,0.05915403,2634.6,2634.3,1.621]
[1724032450283,3.85479403,2634.6,2634.3,1.621]
[1724032455475,0.05915403,2634.6,2634.3,1.621]
[1724032456884,3.85481403,2634.6,2634.3,1.621]
[1724032458111,0.05915403,2634.6,2634.5,5.41678]
[1724032458391,3.79559,2634.7,2634.3,1.621]
[1724032458552,0.0544874,2634.6,2634.3,5.41703]
[1724032458747,6.11494,2634.8,2634.4,0.83656187]
[1724032458979,0.05457365,2634.7,2634.3,1.621]
[1724032459190,6.11494,2634.8,2634.4,0.83655796]
[1724032459363,0.0544874,2634.6,2634.4,0.83655796]
[1724032459558,6.223,2634.5,2634.0,2.11552291]
[1724032459759,7.64628488,2634.4,2634.1,2.15723243]
[1724032460103,7.64628488,2634.4,2634.2,0.83660404]
[1724032460306,3.85025488,2634.4,2634.0,1.621]
[1724032460503,3.85025488,2634.4,2634.1,0.83665036]
[1724032460504,3.79594,2634.4,2634.1,0.83665036]
[1724032460651,3.79594,2634.4,2634.0,3.60207223]
[1724032460652,0.0543984,2634.3,2634.0,1.621]
[1724032460853,0.0543984,2634.3,2634.1,0.83666928]
[1724032461099,3.79594,2634.4,2634.0,1.621]
[1724032461405,3.79594,2634.4,2634.1,0.83666035]
[1724032461555,0.05459254,2634.3,2634.0,1.98108821]
[1724032461878,0.05459254,2634.3,2634.1,0.83665412]
[1724032462075,0.05459254,2634.3,2634.0,1.621]
[1724032462383,0.05459254,2634.3,2634.1,0.83666139]
[1724032462572,0.05459254,2634.3,2634.0,1.98111238]
[1724032462750,3.85066254,2634.3,2634.1,0.8366716]
[1724032463086,0.05459254,2634.3,2633.9,5.77768854]
[1724032463285,0.05459254,2634.3,2634.1,0.78650772]
[1724032463493,6.2097,2634.7,2634.2,4.13854657]
[1724032463785,6.2097,2634.7,2634.3,0.83657935]
[1724032464085,7.79982365,2634.7,2634.2,1.98093552]
[1724032464276,7.79982365,2634.7,2634.3,0.83660144]
[1724032464477,7.79982365,2634.7,2634.2,1.98096353]
[1724032464673,7.79982365,2634.7,2634.1,4.58277772]
[1724032464888,7.79982365,2634.7,2634.2,4.13820067]
[1724032465190,3.79569,2634.6,2634.3,0.83660296]
[1724032465363,2.4697,2634.5,2634.0,2.52976699]
[1724032465568,2.4697,2634.5,2634.1,4.13838619]
[1724032465763,2.4697,2634.5,2634.2,2.15732553]
[1724032465970,2.4697,2634.5,2634.1,1.98107985]
[1724032466172,2.4697,2634.5,2634.2,2.15736948]
[1724032466376,2.91423574,2634.5,2634.1,1.9810798]
[1724032466677,2.91423574,2634.5,2634.2,0.83666883]
[1724032467001,3.85058872,2634.4,2634.1,1.98112313]
[1724032467293,3.85058872,2634.4,2634.2,2.15739453]
[1724032467455,3.85058872,2634.4,2634.0,1.20123551]
[1724032467456,2.4974,2634.2,2634.1,1.98109062]
[1724032467656,2.4974,2634.2,2634.1,2.15739783]
[1724032467862,0.0544862,2634.2,2634.1,4.13852711]
[1724032468411,0.05448586,2634.2,2634.1,3.30186091]
[1724032468699,0.05448586,2634.2,2634.1,4.13853276]
[1724032468904,6.10193,2634.4,2634.1,2.15740374]
[1724032469087,0.05448586,2634.2,2634.0,1.20131788]
[1724032469274,6.10193,2634.4,2634.1,4.13846722]
[1724032469480,6.10193,2634.4,2634.2,0.83665421]
[1724032469676,6.10193,2634.4,2634.0,0.41480591]
[1724032469878,6.10193,2634.4,2634.1,2.15744887]
[1724032470095,6.10193,2634.4,2633.9,2.11521486]
[1724032470395,3.79631,2634.2,2634.0,4.13859995]
[1724032470597,6.10238,2634.1,2633.8,0.41485781]
[1724032470783,2.36051445,2634.1,2633.9,4.13892309]
[1724032470982,2.36051445,2634.1,2633.7,1.20143404]
[1724032471184,2.36051445,2634.1,2633.8,4.13889023]
[1724032471361,2.36051445,2634.1,2633.9,2.15759987]
[1724032471566,2.9761969,2634.1,2633.7,1.20143404]
[1724032471786,3.79663,2634.0,2633.8,2.15766767]
[1724032471994,3.79663,2634.0,2633.7,1.98139971]
[1724032471995,2.2662,2633.8,2633.7,1.98139971]
[1724032472178,2.2662,2633.8,2633.7,0.83679952]
[1724032472524,2.3202907,2633.8,2633.6,1.98147053]
[1724032472689,2.3202907,2633.8,2633.5,1.98148846]
[1724032473012,3.79694,2633.7,2633.4,0.84188199]
[1724032473164,6.72879777,2633.8,2633.4,0.84188199]
[1724032473360,0.05391086,2633.6,2633.4,0.84188199]
[1724032473585,3.79695,2633.7,2633.4,0.84188199]
[1724032473783,0.05382455,2633.5,2633.4,0.84188199]
[1724032474068,3.79695,2633.7,2633.4,0.84188199]
[1724032474700,0.05390955,2633.6,2633.4,0.1254801]
[1724032479481,6.22962,2633.5,2633.4,0.1254801]
[1724032479679,10.02684,2633.5,2633.4,0.1254801]
[1724032479881,10.08066324,2633.5,2633.4,0.1254801]
[1724032480104,13.90408387,2633.5,2633.4,0.1254801]
[1724032480816,2.3731,2632.6,2632.0,6.10106]
[1724032481022,6.17163,2632.6,2632.0,6.10106]
[1724032481227,6.17172,2632.6,2632.0,6.10106]
[1724032481449,0.05281677,2632.5,2631.8,3.79963]
[1724032481609,0.05281677,2632.5,2631.8,3.79959]
[1724032482149,3.79884,2632.4,2631.8,3.79958]
[1724032482470,3.85170347,2632.4,2631.9,3.79949]
[1724032482625,0.05286347,2632.4,2631.9,3.79944]
[1724032482824,0.05286347,2632.4,2631.9,7.59889]
[1724032483033,0.05286347,2632.4,2631.7,2.4973]
[1724032483034,1.05518982,2632.4,2631.6,3.06621132]
[1724032483225,6.17221,2632.2,2631.5,3.8]
[1724032483425,2.3731,2632.2,2631.5,3.8]
[1724032483881,2.3731,2632.2,2631.7,3.79981]
[1724032485383,7.17462235,2632.2,2631.5,3.8]
[1724032485726,3.7994,2632.0,2631.3,6.80027]
[1724032486028,3.79926,2632.1,2631.5,3.8001]
[1724032486277,3.7994,2632.0,2631.3,6.80027]
[1724032486493,3.7994,2632.0,2631.4,3.80022]
[1724032487033,3.85218531,2631.9,2631.3,6.80027]
[1724032487343,6.24214,2631.8,2631.3,3.0]
[1724032487683,6.29464034,2631.8,2631.2,3.80044]
[1724032487977,2.49490034,2631.8,2631.3,3.8004]
[1724032488135,3.59179411,2631.8,2631.3,3.8004]
[1724032489385,0.05250034,2631.8,2631.3,6.1047]
[1724032489532,8.19523162,2632.1,2631.5,3.8001]
[1724032489844,0.05037792,2631.7,2631.3,3.80031]
[1724032490047,0.05037792,2631.7,2631.1,7.60118]
[1724032490249,3.79964,2631.9,2631.1,3.80057]
[1724032490250,2.314,2631.6,2631.1,3.80057]
[1724032490466,2.314,2631.6,2631.1,7.60114]
[1724032490646,2.314,2631.6,2631.1,3.80057]
[1724032491014,0.05032213,2631.5,2631.1,3.80057]
[1724032491330,0.66673634,2631.5,2631.0,3.80081]
[1724032491553,4.46686634,2631.5,2631.0,3.80081]
[1724032491995,0.66673634,2631.5,2631.0,3.80081]
[1724032492135,0.66673634,2631.5,2631.1,3.80068]
[1724032492334,0.05032213,2631.5,2631.1,3.80068]
[1724032492531,2.314,2631.4,2631.0,3.80074]
[1724032492735,2.36427578,2631.4,2631.0,3.80074]
[1724032492932,2.36427578,2631.4,2631.0,7.60148]
[1724032493197,2.36427578,2631.4,2631.1,3.80062]
[1724032493863,2.36427578,2631.4,2630.8,3.9265201]
[1724032493864,2.60070336,2631.4,2630.8,0.1254801]
[1724032494179,2.314,2631.2,2630.8,0.1254801]
[1724032494538,0.04965283,2631.1,2630.8,0.1254801]
[1724032495184,0.66605911,2631.1,2630.8,0.1254801]
[1724032496853,2.4991,2631.0,2630.8,0.1254801]
[1724032497242,0.04946107,2630.9,2630.8,0.1254801]
[1724032497636,0.04946107,2630.9,2630.8,3.9266001]
[1724032497994,2.4991,2631.3,2630.9,3.80094]
[1724032498140,2.74901,2631.3,2630.9,3.80088]
[1724032498341,2.4991,2631.3,2631.0,3.80074]
[1724032499505,2.3521,2631.6,2631.1,3.80068]
[1724032499908,6.15209,2631.6,2631.1,3.80068]
[1724032500102,7.39341856,2631.6,2631.1,3.80068]
[1724032500596,3.59342856,2631.6,2631.1,7.60128]
[1724032500757,2.3521,2631.6,2631.1,3.8006]
[1724032501746,2.3521,2631.6,2631.2,3.8004]
[1724032501951,2.3521,2631.6,2631.3,3.80038]
[1724032502264,8.22333162,2631.8,2631.4,3.80022]
[1724032502688,2.3421,2631.8,2631.5,3.80006]
[1724032503050,2.3421,2631.8,2631.6,3.79994]
[1724032503349,2.3421,2631.8,2631.5,3.80002]
[1724032503493,2.3421,2631.8,2631.5,3.80001]
[1724032503698,2.3421,2631.8,2631.2,3.80041]
[1724032503940,6.37607,2631.8,2631.2,3.80041]
[1724032504140,6.37607,2631.8,2631.3,3.80039]
[1724032504141,2.57631,2631.8,2631.3,3.80039]
[1724032504440,2.4067,2631.6,2631.0,7.60152]
[1724032504727,2.4067,2631.6,2631.1,3.80069]
[1724032505554,2.4067,2631.6,2631.1,3.8006]
[1724032505850,3.4945255,2631.6,2631.1,3.8006]
[1724032506154,3.4945255,2631.6,2630.9,3.80085]
[1724032506155,3.80014,2631.5,2630.9,3.80085]
[1724032506860,2.45326478,2631.4,2630.9,3.80085]
[1724032507419,2.45326478,2631.4,2630.8,3.1254801]
[1724032507725,2.45326478,2631.4,2631.0,3.80072]
[1724032507942,2.45326478,2631.4,2631.2,3.80045]
[1724032508140,0.04656478,2631.4,2631.3,3.8004]
[1724032508415,2.4222,2631.6,2631.3,3.8004]
[1724032508640,0.0461221,2631.4,2631.2,3.80052]
[1724032508916,2.4222,2631.6,2631.2,3.80052]
[1724032509354,2.4222,2631.6,2631.3,3.80039]
[1724032509557,2.4222,2631.9,2631.0,2.2954]
[1724032509712,2.4222,2631.9,2631.7,3.79977]
[1724032509909,3.79902,2632.3,2631.8,3.79968]
[1724032509910,2.4222,2632.3,2631.8,3.79968]
[1724032510158,2.4222,2632.3,2631.9,3.79953]
[1724032510452,2.4222,2632.3,2631.8,0.07599199]
[1724032510453,0.04533131,2632.2,2632.1,3.79921]
[1724032510675,5.88123162,2632.4,2632.2,3.79907]
[1724032511151,5.88123162,2632.4,2632.0,3.79934]
[1724032511351,10.50655478,2632.4,2631.8,3.79963]
[1724032512418,6.70771478,2632.4,2631.8,4.63684944]
[1724032512613,5.88123162,2632.4,2632.0,3.7993]
[1724032513239,2.3836,2632.5,2632.0,3.7993]
[1724032513618,2.3836,2632.5,2631.8,3.79958]
[1724032513818,2.3836,2632.5,2631.7,4.63699944]
[1724032513819,7.38860816,2632.5,2631.9,3.7995]
[1724032514022,7.38860816,2632.5,2631.9,7.59894]
[1724032514397,0.73886082,2632.4,2632.0,3.79938]
[1724032514677,7.38861816,2632.5,2631.9,3.79944]
[1724032515654,2.3836,2632.5,2632.1,3.79915]
[1724032516950,2.3836,2632.5,2632.0,3.79931]
[1724032517160,0.23836,2632.4,2632.0,3.79931]
[1724032517651,2.3768,2632.3,2631.8,3.79955]
[1724032517951,2.3768,2632.3,2631.9,3.79953]
[1724032519259,3.79904,2632.3,2631.8,3.79955]
[1724032519459,2.4858,2632.2,2631.6,3.79987]
[1724032519753,2.4858,2632.2,2631.8,3.79962]
[1724032519977,0.24858,2632.1,2631.6,3.79984]
[1724032520257,2.2922,2632.0,2631.5,3.80011]
[1724032520558,2.926211,2632.0,2631.8,3.79958]
[1724032520744,2.2922,2632.0,2631.8,3.79958]
[1724032521569,2.2922,2632.0,2631.6,3.79988]
[1724032522137,2.2922,2632.0,2631.1,3.83732728]
[1724032522332,2.2922,2632.0,2631.5,3.80007]
[1724032522571,2.901333,2632.0,2631.7,3.79971]
[1724032522881,2.2922,2632.0,2631.7,7.59944]
[1724032523090,2.2922,2632.0,2631.7,7.59945]
[1724032523264,2.2922,2632.0,2631.7,3.79971]
[1724032523435,0.04547752,2631.9,2631.7,3.79971]
[1724032523642,0.04547752,2631.9,2631.8,7.59936]
[1724032523891,5.88123162,2632.3,2631.9,3.7994]
[1724032524083,6.73231078,2632.3,2632.0,3.79937]
[1724032524237,5.88123162,2632.3,2632.0,3.79937]
[1724032524560,5.88123162,2632.3,2632.2,3.7991]
[1724032524764,2.3912,2632.7,2632.4,3.7988]
[1724032524935,3.59826016,2632.7,2632.4,3.7988]
[1724032525936,5.88123162,2632.9,2632.7,3.79829]
[1724032526272,5.88123162,2632.9,2632.3,3.7989]
[1724032526506,0.82724316,2632.8,2632.3,3.79885]
[1724032526676,0.82724316,2632.8,2632.4,3.79873]
[1724032527078,0.04413316,2632.7,2632.4,3.79873]
[1724032527239,0.67526079,2632.7,2632.3,3.79885]
[1724032527443,0.04404679,2632.6,2632.4,3.79868]
[1724032527647,5.88123162,2632.9,2632.4,3.79868]
[1724032527846,0.04396041,2632.5,2632.4,3.79868]
[1724032528058,7.08827078,2632.9,2632.4,3.79868]
[1724032528261,0.04396041,2632.5,2632.4,3.79868]
[1724032529306,7.08827078,2632.9,2632.4,3.79868]
[1724032529517,0.04396041,2632.5,2632.4,3.79868]
[1724032529665,7.08827078,2632.9,2632.4,3.79868]
[1724032530003,0.04396041,2632.5,2632.4,3.79868]
[1724032530176,1.37196261,2632.8,2632.4,3.79868]
[1724032530357,0.04421953,2632.8,2632.5,3.79855]
[1724032530552,0.04421953,2632.8,2632.7,3.79838]
[1724032531206,0.04421953,2632.8,2632.5,7.5971]
[1724032531408,2.3912,2633.0,2632.6,3.79852]
[1724032531613,0.04397762,2632.7,2632.4,3.79878]
[1724032532024,0.23912,2632.9,2632.5,3.79861]
[1724032532025,0.04389124,2632.6,2632.5,3.79861]
[1724032532167,6.18923,2633.0,2632.5,3.79861]
[1724032532579,0.04415036,2632.9,2632.5,3.79861]
[1724032533035,0.04415036,2632.9,2632.3,3.79889]
[1724032533036,0.04415036,2632.9,2632.3,7.59774]
[1724032533189,0.04415036,2632.9,2632.4,3.79878]
[1724032533381,1.0472974,2632.9,2632.5,3.79866]
[1724032533608,1.0472974,2632.9,2632.5,7.59723]
[1724032533923,1.0472974,2632.9,2632.5,3.79859]
[1724032534096,0.34384974,2632.8,2632.5,3.79858]
[1724032534539,0.04397762,2632.7,2632.5,3.79858]
[1724032534881,0.34384974,2632.8,2632.5,3.79858]
[1724032535100,0.04389124,2632.6,2632.5,3.79858]
[1724032535400,0.34384974,2632.8,2632.5,3.79858]
[1724032535584,0.04389124,2632.6,2632.5,3.79858]
[1724032535986,6.18917,2633.0,2632.5,3.79858]
[1724032536234,0.66306736,2632.9,2632.5,3.79858]
[1724032536389,0.04415036,2632.9,2632.6,3.79852]
[1724032536594,0.04415036,2632.9,2632.8,3.79823]
[1724032537113,2.3801,2633.1,2632.7,3.79835]
[1724032537300,0.04394967,2632.9,2632.7,3.79835]
[1724032537498,6.17792,2633.1,2632.5,7.59712]
[1724032537805,7.88418908,2633.1,2632.5,3.79853]
[1724032538029,0.04403604,2633.0,2632.5,7.59712]
[1724032538647,0.04403604,2633.0,2632.6,3.79851]
[1724032539735,0.04403604,2633.0,2632.8,3.79815]
[1724032543115,0.04403604,2633.0,2632.9,3.79809]
[1724032544999,0.04403604,2633.0,2632.9,7.59618]
[1724032545268,2.3939,2633.0,2632.7,3.79826]
[1724032545557,2.43861024,2633.0,2632.6,3.79846]
[1724032546037,2.43861024,2633.0,2632.7,7.59665]
[1724032546211,2.43861024,2633.0,2632.7,3.7983]
[1724032546614,0.04471024,2633.0,2632.7,3.7983]
[1724032546840,2.3939,2633.2,2632.8,3.79822]
[1724032547041,0.04446842,2632.9,2632.5,2.4457]
[1724032547247,2.3939,2633.2,2632.6,3.79851]
[1724032547540,5.88123162,2633.3,2633.0,3.79783]
[1724032547892,2.3939,2633.4,2633.1,3.79777]
[1724032548309,3.013004,2633.4,2633.1,3.79777]
[1724032548711,3.013004,2633.4,2632.9,7.59601]
[1724032548921,3.013004,2633.4,2633.0,3.79793]
[1724032549121,3.013004,2633.4,2632.9,3.79796]
[1724032549339,0.6810234,2633.3,2632.9,7.59595]
[1724032549534,0.6810234,2633.3,2632.9,3.79796]
[1724032550006,0.04465005,2633.2,2632.9,3.79796]
[1724032550207,2.4917,2633.1,2632.9,3.79796]
[1724032550443,0.04447736,2633.0,2632.9,3.79796]
[1724032550740,0.04447736,2633.0,2632.7,3.7983]
[1724032552142,0.04447736,2633.0,2632.5,7.59718]
[1724032552356,0.04447736,2633.0,2632.5,8.43426799]
[1724032552561,0.04447736,2633.0,2632.5,7.59718]
[1724032552763,0.04447736,2633.0,2632.5,8.43427263]
[1724032553063,0.04447736,2633.0,2632.5,7.59718]
[1724032553284,0.04447736,2633.0,2632.6,4.63560263]
[1724032553440,0.04447736,2633.0,2632.6,3.79851]
[1724032554366,0.04447736,2633.0,2632.7,0.83709343]
[1724032554574,0.04447736,2633.0,2632.6,3.79851]
[1724032555064,0.04447736,2633.0,2632.5,7.59712]
[1724032555385,0.04447736,2633.0,2632.6,0.83709744]
[1724032555566,0.04447736,2633.0,2632.7,4.63536382]
[1724032555766,0.04447736,2633.0,2632.9,3.79809]
[1724032558666,0.04447736,2633.0,2632.9,7.59618]
[1724032559048,2.3405,2633.4,2632.9,3.798]
[1724032559259,2.3405,2633.4,2633.0,3.79792]
[1724032559453,3.16267316,2633.4,2633.0,3.79792]
[1724032559753,3.16267316,2633.4,2632.9,7.59601]
[1724032560586,3.16267316,2633.4,2633.0,3.7979]
[1724032561469,3.16267316,2633.4,2632.9,3.798]
[1724032561875,8.22173162,2633.6,2633.1,3.79766]
[1724032562074,8.22173162,2633.6,2633.0,0.83694972]
[1724032562276,10.25790478,2633.6,2633.1,3.79775]
[1724032562686,0.04194362,2633.5,2633.1,3.79775]
[1724032563503,2.3665,2633.4,2632.9,3.79799]
[1724032564110,0.04177986,2633.3,2632.9,3.79799]
[1724032564441,0.04177986,2633.3,2632.6,1.32556283]
[1724032564648,2.3665,2633.2,2632.9,3.79807]
[1724032564850,2.40819385,2633.2,2632.9,3.79807]
[1724032565147,3.02875024,2633.2,2632.9,3.79807]
[1724032565547,0.04169385,2633.2,2632.9,3.79807]
[1724032565809,0.04169385,2633.2,2633.1,3.7978]
[1724032566107,2.40819585,2633.2,2633.1,3.7978]
[1724032566243,2.3665,2633.2,2633.1,3.7978]
[1724032566590,2.2691,2633.5,2633.1,3.79772]
[1724032566878,4.45093516,2633.5,2633.1,3.79772]
[1724032568379,4.45093516,2633.5,2633.1,7.59544]
[1724032568675,2.2691,2633.5,2633.2,3.79759]
[1724032568878,2.2691,2633.5,2633.1,3.79772]
[1724032569863,0.04186852,2633.4,2633.1,3.79772]
[1724032572470,0.04186852,2633.4,2633.1,7.59545]
[1724032572666,0.04186852,2633.4,2633.1,3.79772]
[1724032573258,0.65267537,2633.4,2633.1,3.79772]
[1724032574184,0.65267537,2633.4,2633.1,3.79771]
[1724032574388,0.04186852,2633.4,2633.1,3.79771]
[1724032574593,0.04186852,2633.4,2633.1,3.79769]
[1724032575872,0.04186852,2633.4,2633.2,3.79764]
[1724032576272,0.04186852,2633.4,2633.1,3.79769]
[1724032576615,6.06402,2633.3,2632.8,3.79821]
[1724032576904,0.04158584,2633.2,2632.8,3.79821]
[1724032577383,6.06402,2633.3,2632.7,5.42135]
[1724032577682,0.04158584,2633.2,2632.8,0.83703998]
[1724032577977,7.11124159,2633.3,2632.7,5.42135]
[1724032578135,0.04149949,2633.1,2632.8,0.83704112]
[1724032578317,4.84484159,2633.3,2632.7,5.42135]
[1724032578482,0.04141313,2633.0,2632.8,0.83704107]
[1724032578682,2.2664,2633.1,2632.7,5.42135]
[1724032578888,0.04132677,2632.9,2632.5,6.79856]
[1724032579082,2.2664,2633.1,2632.6,0.83709326]
[1724032579320,0.04135077,2632.8,2632.7,2.46008247]
[1724032579542,2.2664,2633.1,2632.7,6.25836247]
[1724032579835,0.04151559,2633.0,2632.7,5.42128]
[1724032580042,0.04151559,2633.0,2632.7,9.21957]
[1724032580242,0.04151559,2633.0,2632.7,5.42128]
[1724032580812,0.04151559,2633.0,2632.7,9.21957]
[1724032581120,0.04151559,2633.0,2632.9,5.42109]
[1724032581331,2.4605,2633.2,2633.0,3.79786]
[1724032584165,0.04148799,2633.1,2633.0,3.79786]
[1724032584469,2.4605,2633.2,2633.0,3.79786]
[1724032584830,2.4605,2633.2,2633.1,3.7978]
[1724032585038,2.4605,2633.5,2633.3,3.79737]
[1724032585232,2.4605,2633.5,2633.3,7.59479]
[1724032585417,8.34173162,2633.8,2633.4,3.79737]
[1724032585769,9.55555878,2633.8,2633.4,3.79737]
[1724032585911,3.67432716,2633.8,2633.4,3.79737]
[1724032586463,3.67432716,2633.8,2633.3,5.42037]
[1724032586464,3.67432716,2633.8,2633.3,9.2178]
[1724032586812,3.67432716,2633.8,2633.3,5.42037]
[1724032587244,2.4815,2633.7,2633.2,3.79764]
[1724032587429,2.4815,2633.7,2633.1,5.42074]
[1724032587430,7.02558072,2633.7,2633.1,5.42074]
[1724032587626,2.4815,2633.6,2633.1,5.42074]
[1724032587833,2.4815,2633.4,2633.0,3.79793]
[1724032588050,2.4815,2633.4,2632.9,5.421]
[1724032588250,2.4815,2633.4,2633.0,3.83696242]
[1724032588564,2.4815,2633.4,2633.0,3.0]
[1724032589976,2.4815,2633.4,2633.0,6.79794]
[1724032591940,2.4815,2633.4,2633.1,3.7978]
[1724032592380,2.4815,2633.4,2633.2,3.79758]
[1724032592557,2.4391,2633.6,2633.4,3.79736]
[1724032594155,2.4391,2633.6,2633.5,3.79722]
[1724032594745,5.88123162,2633.7,2633.5,3.79722]
[1724032596675,2.3493,2633.8,2633.5,3.79722]
[1724032599359,2.3493,2633.8,2633.6,3.79707]
[1724032599602,2.3493,2633.8,2633.6,3.797]
[1724032602706,2.3108,2634.0,2633.6,3.797]
[1724032603090,2.3108,2634.0,2633.6,7.594]
[1724032603515,2.3108,2634.0,2633.6,3.797]
[1724032603715,2.3108,2634.0,2633.7,3.79692]
[1724032604725,2.3726,2634.3,2633.7,3.79692]
[1724032604896,2.3726,2634.3,2633.9,3.79657]
[1724032605097,2.3726,2634.3,2633.9,3.79654]
[1724032610345,6.16868,2634.3,2633.7,9.21667]
[1724032610637,6.27251,2634.0,2633.5,3.79713]
[1724032610816,2.476,2634.0,2633.5,3.79713]
[1724032611017,6.27251,2634.0,2633.5,3.79713]
[1724032614437,2.476,2634.0,2633.6,3.79705]
[1724032615404,2.476,2634.0,2633.5,9.21728]
[1724032615720,6.27251,2634.0,2633.5,5.42013]
[1724032615920,6.27251,2634.0,2633.5,9.21728]
[1724032616143,6.27251,2634.0,2633.5,5.42013]
[1724032616448,6.27251,2634.0,2633.5,9.21727]
[1724032617008,2.476,2634.0,2633.5,9.21727]
[1724032617343,2.476,2634.0,2633.6,3.79704]
[1724032617648,2.476,2634.0,2633.7,3.79692]
[1724032621664,3.79598,2634.4,2634.0,3.79641]
[1724032621665,2.4518,2634.4,2634.0,3.79641]
[1724032621811,2.4518,2634.4,2634.3,3.79607]
[1724032622163,5.88123162,2634.5,2634.3,5.41899]
[1724032622314,2.4518,2634.6,2634.3,5.41899]
[1724032622848,2.4518,2634.6,2634.3,9.21498]
[1724032623008,2.4518,2634.6,2634.3,5.41899]
[1724032623245,2.4518,2634.6,2634.4,3.79591]
[1724032623616,2.4518,2634.6,2634.5,3.79578]
[1724032625406,2.4518,2634.6,2634.3,9.21494]
[1724032625568,2.4518,2634.6,2634.4,3.79582]
[1724032626073,0.04147343,2634.5,2634.4,3.79582]
[1724032626449,0.04147343,2634.5,2634.4,7.66766358]
[1724032626657,6.79403,2635.8,2634.4,7.66766358]
[1724032626658,2.2695,2635.9,2635.2,3.79477]
[1724032626902,2.2695,2635.9,2635.5,1.623]
[1724032627110,2.30785762,2635.9,2635.5,5.41734]
[1724032627263,2.2695,2635.9,2635.5,5.41734]
[1724032628398,2.49645,2635.9,2635.5,5.41734]
[1724032628563,2.49645,2635.9,2635.5,3.79434]
[1724032630799,2.2695,2635.9,2635.5,3.79434]
[1724032631575,2.2695,2635.9,2635.5,3.79423]
[1724032632117,2.3082,2635.7,2635.0,3.0]
[1724032632312,2.3082,2635.7,2635.0,3.79496]
[1724032632313,3.79428,2635.6,2635.0,3.79496]
[1724032633401,3.79428,2635.6,2634.9,3.7951]
[1724032633402,2.3668,2635.4,2634.9,3.7951]
[1724032633983,3.79475,2635.3,2634.7,3.79544]
[1724032634182,3.79487,2635.2,2634.5,3.79568]
[1724032634369,6.4970042,2635.4,2634.5,3.79568]
[1724032634567,3.79463,2635.3,2634.7,7.59081]
[1724032634773,6.16136,2635.4,2634.8,3.79535]
[1724032634996,3.79463,2635.3,2634.7,7.59081]
[1724032635304,6.16136,2635.4,2634.8,3.79534]
[1724032635635,3.79469,2635.3,2634.7,3.7954]
[1724032636004,3.79469,2635.3,2634.5,3.79571]
[1724032636005,3.79508,2635.0,2634.5,3.79571]
[1724032636306,6.04838,2635.2,2634.6,3.0]
[1724032636609,6.04838,2635.2,2634.7,3.79549]
[1724032636777,2.2535,2635.2,2634.7,3.79549]
[1724032636981,2.2535,2635.2,2634.7,3.7954]
[1724032637289,2.2535,2635.2,2634.8,3.79522]
[1724032638670,2.2535,2635.2,2634.9,3.79516]
[1724032639881,2.2535,2635.2,2634.6,6.79553]
[1724032640203,6.04836,2635.2,2634.6,10.59107]
[1724032640420,6.04836,2635.2,2634.6,6.79553]
[1724032640574,6.04836,2635.2,2634.6,10.59106]
[1724032640912,3.795,2635.1,2634.6,3.0]
[1724032641067,3.795,2635.1,2634.5,6.7957]
[1724032641783,3.795,2635.1,2634.6,3.79564]
[1724032642177,6.04836,2635.2,2634.6,3.79564]
[1724032642381,6.653196,2635.2,2634.5,3.0]
[1724032642582,2.3153,2634.7,2634.3,3.79598]